[Event "Early-Titled-Tuesday-Blitz-December-26-2023"]
[Site "Chess.com"]
[Date "2023.12.26"]
[Round "3"]
[White "viviania"]
[Black "Ramla2020"]
[Result "1-0"]
[WhiteElo "2828"]
[BlackElo "2459"]
[TimeControl "180+1"]
[EndTime "8:28:40 PST"]
[Termination "viviania won by resignation"]

1. e4 {[%clk 0:02:59.1]} 1... e5 {[%clk 0:02:58.5]} 2. Nf3 {[%clk 0:02:59]} 2...
d6 {[%clk 0:02:58.7]} 3. d4 {[%clk 0:02:58.5]} 3... Nd7 {[%clk 0:02:59.6]} 4.
Bc4 {[%clk 0:02:57.5]} 4... c6 {[%clk 0:02:59.8]} 5. c3 {[%clk 0:02:55.6]} 5...
b5 {[%clk 0:02:59.3]} 6. Bb3 {[%clk 0:02:55.3]} 6... Be7 {[%clk 0:02:59.6]} 7.
a4 {[%clk 0:02:50.5]} 7... Ngf6 {[%clk 0:02:58.6]} 8. axb5 {[%clk 0:02:49.5]}
8... cxb5 {[%clk 0:02:59.5]} 9. Nbd2 {[%clk 0:02:44.3]} 9... O-O {[%clk
0:02:59]} 10. O-O {[%clk 0:02:43.7]} 10... a5 {[%clk 0:02:58.9]} 11. Re1 {[%clk
0:02:43.2]} 11... Qc7 {[%clk 0:02:56]} 12. Nf1 {[%clk 0:02:42]} 12... h6 {[%clk
0:02:54.4]} 13. Ng3 {[%clk 0:02:41.9]} 13... Re8 {[%clk 0:02:54.4]} 14. Nh4
{[%clk 0:02:38.3]} 14... Nb6 {[%clk 0:02:46.4]} 15. Nhf5 {[%clk 0:02:34.6]}
15... Bf8 {[%clk 0:02:46.2]} 16. Qf3 {[%clk 0:02:33.3]} 16... a4 {[%clk
0:02:32.2]} 17. Ba2 {[%clk 0:02:22.5]} 17... Nh7 {[%clk 0:02:24.9]} 18. h4
{[%clk 0:01:48.1]} 18... Nc4 {[%clk 0:02:17.5]} 19. h5 {[%clk 0:01:42.2]} 19...
Bb7 {[%clk 0:02:04.7]} 20. Bb1 {[%clk 0:01:35.1]} 20... Kh8 {[%clk 0:01:55]} 21.
d5 {[%clk 0:01:31]} 21... Na5 {[%clk 0:01:53.1]} 22. Be3 {[%clk 0:01:24.1]}
22... Nb3 {[%clk 0:01:51.1]} 23. Ra2 {[%clk 0:01:14.2]} 23... Qc4 {[%clk
0:01:31.7]} 24. Qd1 {[%clk 0:01:08.8]} 24... Qc7 {[%clk 0:01:19.5]} 25. Bc2
{[%clk 0:01:01.6]} 25... Nc5 {[%clk 0:01:17.5]} 26. Rf1 {[%clk 0:01:00.8]} 26...
Qb6 {[%clk 0:01:02.8]} 27. f4 {[%clk 0:00:56.7]} 27... exf4 {[%clk 0:01:00.2]}
28. Rxf4 {[%clk 0:00:56.1]} 28... Ng5 {[%clk 0:00:58.2]} 29. Bd4 {[%clk
0:00:50.2]} 29... Kh7 {[%clk 0:00:55.5]} 30. Qd2 {[%clk 0:00:37.5]} 30... f6
{[%clk 0:00:51.2]} 31. Ra1 {[%clk 0:00:33.8]} 31... Qc7 {[%clk 0:00:48.4]} 32.
Raf1 {[%clk 0:00:23.1]} 32... Kg8 {[%clk 0:00:46.2]} 33. Rg4 {[%clk 0:00:18.9]}
33... Nd7 {[%clk 0:00:44.9]} 34. Nxh6+ {[%clk 0:00:15.2]} 34... gxh6 {[%clk
0:00:41.7]} 35. Bxf6 {[%clk 0:00:15.4]} 35... Nxf6 {[%clk 0:00:39.1]} 36. Rxf6
{[%clk 0:00:15.6]} 36... Bg7 {[%clk 0:00:39.4]} 37. Rg6 {[%clk 0:00:14.8]} 37...
Bc8 {[%clk 0:00:39.3]} 38. Nf5 {[%clk 0:00:14.8]} 38... Bxf5 {[%clk 0:00:38.8]}
39. exf5 {[%clk 0:00:15.1]} 39... Rf8 {[%clk 0:00:36.5]} 40. R4xg5 {[%clk
0:00:13.5]} 40... hxg5 {[%clk 0:00:36]} 41. h6 {[%clk 0:00:13.7]} 41... Rf7
{[%clk 0:00:34.8]} 42. f6 {[%clk 0:00:12.6]} 42... a3 {[%clk 0:00:20.6]} 43.
bxa3 {[%clk 0:00:12]} 43... Rxa3 {[%clk 0:00:19.9]} 44. hxg7 {[%clk 0:00:10.5]}
44... Qc5+ {[%clk 0:00:14]} 45. Kh2 {[%clk 0:00:09.9]} 45... Rxc3 {[%clk
0:00:14.1]} 46. Rh6 {[%clk 0:00:09.4]} 46... Rxg7 {[%clk 0:00:03.8]} 47. fxg7
{[%clk 0:00:08.1]} 47... Qe3 {[%clk 0:00:03.7]} 48. Qxe3 {[%clk 0:00:07.9]}
48... Rxe3 {[%clk 0:00:04.6]} 49. Rxd6 {[%clk 0:00:07.8]} 49... Kxg7 {[%clk
0:00:04.1]} 50. Rb6 {[%clk 0:00:07.8]} 50... Rc3 {[%clk 0:00:03.9]} 51. Be4
{[%clk 0:00:07.2]} 51... Rc5 {[%clk 0:00:03.8]} 52. d6 {[%clk 0:00:07.1]} 52...
Rc4 {[%clk 0:00:03.1]} 53. d7 {[%clk 0:00:06.7]} 53... Rd4 {[%clk 0:00:03.2]}
54. Rxb5 {[%clk 0:00:06]} 54... Kf6 {[%clk 0:00:02.7]} 55. Rd5 {[%clk
0:00:05.7]} 55... Rxd5 {[%clk 0:00:02.7]} 56. Bxd5 {[%clk 0:00:05.1]} 56... Ke7
{[%clk 0:00:03.6]} 57. Be6 {[%clk 0:00:05.5]} 57... Kd8 {[%clk 0:00:03.4]} 58.
Kg3 {[%clk 0:00:05.8]} 58... Ke7 {[%clk 0:00:04.3]} 59. Kg4 {[%clk 0:00:06.1]}
1-0

[Event "Early-Titled-Tuesday-Blitz-December-26-2023"]
[Site "Chess.com"]
[Date "2023.12.26"]
[Round "3"]
[White "Semetey"]
[Black "WindWhistler11"]
[Result "1-0"]
[WhiteElo "2631"]
[BlackElo "2445"]
[TimeControl "180+1"]
[EndTime "8:28:57 PST"]
[Termination "Semetey won on time"]

1. Nf3 {[%clk 0:02:53.6]} 1... Nf6 {[%clk 0:02:56]} 2. e3 {[%clk 0:02:54.5]}
2... e6 {[%clk 0:02:56.7]} 3. b3 {[%clk 0:02:53.7]} 3... b6 {[%clk 0:02:56.5]}
4. Bb2 {[%clk 0:02:54.6]} 4... Bb7 {[%clk 0:02:57.1]} 5. c4 {[%clk 0:02:54.1]}
5... c5 {[%clk 0:02:56.8]} 6. Be2 {[%clk 0:02:53]} 6... d6 {[%clk 0:02:57.1]} 7.
O-O {[%clk 0:02:52.5]} 7... Nbd7 {[%clk 0:02:54.9]} 8. d4 {[%clk 0:02:52]} 8...
Be7 {[%clk 0:02:53.1]} 9. Nc3 {[%clk 0:02:51.8]} 9... a6 {[%clk 0:02:48.7]} 10.
Qc2 {[%clk 0:02:51.2]} 10... cxd4 {[%clk 0:02:46.2]} 11. Nxd4 {[%clk 0:02:37.2]}
11... O-O {[%clk 0:02:47.1]} 12. Rfd1 {[%clk 0:02:34.5]} 12... Qc7 {[%clk
0:02:44.1]} 13. Rac1 {[%clk 0:02:33.7]} 13... Rfd8 {[%clk 0:02:42]} 14. e4
{[%clk 0:02:22.1]} 14... Nf8 {[%clk 0:02:34.7]} 15. f4 {[%clk 0:02:11.6]} 15...
Ng6 {[%clk 0:01:46.6]} 16. g3 {[%clk 0:02:08.6]} 16... Bf8 {[%clk 0:01:43.4]}
17. Bf3 {[%clk 0:02:06.6]} 17... e5 {[%clk 0:01:40.2]} 18. Nde2 {[%clk
0:02:00.9]} 18... exf4 {[%clk 0:01:34.6]} 19. gxf4 {[%clk 0:02:00.5]} 19... Nh5
{[%clk 0:01:35.1]} 20. Qd2 {[%clk 0:01:59]} 20... Nf6 {[%clk 0:01:06.7]} 21. Nd5
{[%clk 0:01:53.8]} 21... Nxd5 {[%clk 0:01:02.5]} 22. cxd5 {[%clk 0:01:54.7]}
22... Qe7 {[%clk 0:00:56.7]} 23. Kh1 {[%clk 0:01:51.7]} 23... Rac8 {[%clk
0:00:49.8]} 24. Bd4 {[%clk 0:01:35.7]} 24... b5 {[%clk 0:00:43.5]} 25. Ng3
{[%clk 0:01:15.6]} 25... Nh4 {[%clk 0:00:42.9]} 26. Bg4 {[%clk 0:01:13.8]} 26...
f5 {[%clk 0:00:36.4]} 27. Bh3 {[%clk 0:00:44.3]} 27... Rxc1 {[%clk 0:00:35.7]}
28. Qxc1 {[%clk 0:00:43.1]} 28... Bc8 {[%clk 0:00:14.8]} 29. e5 {[%clk
0:00:36.8]} 29... Nf3 {[%clk 0:00:12.5]} 30. e6 {[%clk 0:00:35.4]} 30... Nxd4
{[%clk 0:00:11.5]} 31. Rxd4 {[%clk 0:00:36.3]} 31... Qf6 {[%clk 0:00:11.6]} 32.
Rd2 {[%clk 0:00:31.8]} 32... g6 {[%clk 0:00:10.6]} 33. Rg2 {[%clk 0:00:17.3]}
33... Bh6 {[%clk 0:00:09.6]} 34. Bxf5 {[%clk 0:00:16.5]} 34... Kh8 {[%clk
0:00:07.8]} 35. Qc7 {[%clk 0:00:16.3]} 35... Rg8 {[%clk 0:00:02.4]} 36. Qf7
{[%clk 0:00:11.6]} 36... Qa1+ {[%clk 0:00:01.9]} 37. Rg1 {[%clk 0:00:11]} 37...
Qd4 {[%clk 0:00:02]} 38. Be4 {[%clk 0:00:11]} 38... Qg7 {[%clk 0:00:01.6]} 39.
f5 {[%clk 0:00:10.5]} 39... Qxf7 {[%clk 0:00:01.5]} 40. exf7 {[%clk 0:00:11.4]}
40... Rf8 {[%clk 0:00:02.1]} 41. fxg6 {[%clk 0:00:12]} 41... hxg6 {[%clk
0:00:03]} 42. Bxg6 {[%clk 0:00:12.5]} 42... Bg4 {[%clk 0:00:03.6]} 43. Ne4
{[%clk 0:00:12.5]} 43... Bf3+ {[%clk 0:00:04]} 44. Rg2 {[%clk 0:00:13.2]} 44...
Kg7 {[%clk 0:00:03.1]} 45. Bh5+ {[%clk 0:00:12.6]} 45... Bxg2+ {[%clk 0:00:04]}
46. Kxg2 {[%clk 0:00:13]} 46... Bf4 {[%clk 0:00:04.5]} 47. h4 {[%clk 0:00:12.6]}
47... Be5 {[%clk 0:00:05.4]} 48. Kf3 {[%clk 0:00:12.1]} 48... Rc8 {[%clk
0:00:06.3]} 49. Kg4 {[%clk 0:00:12.1]} 49... Kf8 {[%clk 0:00:06.6]} 50. Bg6
{[%clk 0:00:12.1]} 50... Rc2 {[%clk 0:00:07.5]} 51. h5 {[%clk 0:00:12.8]} 51...
Rg2+ {[%clk 0:00:07.3]} 52. Kf5 {[%clk 0:00:13.3]} 52... Rxa2 {[%clk 0:00:08.2]}
53. Ke6 {[%clk 0:00:13.6]} 53... Re2 {[%clk 0:00:08.5]} 54. Nxd6 {[%clk
0:00:13.4]} 54... Bh2+ {[%clk 0:00:07.2]} 55. Kd7 {[%clk 0:00:13.8]} 55... Rd2
{[%clk 0:00:02.2]} 56. Kc6 {[%clk 0:00:13.4]} 56... Rc2+ {[%clk 0:00:02]} 57.
Kd7 {[%clk 0:00:13.4]} 57... Rd2 {[%clk 0:00:02.9]} 58. Ke6 {[%clk 0:00:11.8]}
58... Bxd6 {[%clk 0:00:03]} 59. Kxd6 {[%clk 0:00:12]} 59... a5 {[%clk
0:00:03.9]} 60. Kc5 {[%clk 0:00:12]} 60... a4 {[%clk 0:00:03.9]} 61. bxa4 {[%clk
0:00:12.9]} 61... bxa4 {[%clk 0:00:04.7]} 62. h6 {[%clk 0:00:10.2]} 62... a3
{[%clk 0:00:04.5]} 63. h7 {[%clk 0:00:10.8]} 63... Rh2 {[%clk 0:00:04.8]} 64. d6
{[%clk 0:00:11.4]} 64... a2 {[%clk 0:00:04.6]} 65. d7 {[%clk 0:00:12]} 65... Rd2
{[%clk 0:00:03.2]} 66. h8=Q+ {[%clk 0:00:11.7]} 66... Ke7 {[%clk 0:00:04.1]} 67.
f8=Q+ {[%clk 0:00:12.1]} 1-0

[Event "Early-Titled-Tuesday-Blitz-December-26-2023"]
[Site "Chess.com"]
[Date "2023.12.26"]
[Round "3"]
[White "Practical-Play"]
[Black "krasavetc"]
[Result "0-1"]
[WhiteElo "2474"]
[BlackElo "2659"]
[TimeControl "180+1"]
[EndTime "8:29:06 PST"]
[Termination "krasavetc won by resignation"]

1. e4 {[%clk 0:03:00.9]} 1... c5 {[%clk 0:02:56.4]} 2. Nf3 {[%clk 0:02:59]} 2...
Nc6 {[%clk 0:02:54.6]} 3. c3 {[%clk 0:02:58.7]} 3... d5 {[%clk 0:02:49.3]} 4.
exd5 {[%clk 0:02:58.6]} 4... Qxd5 {[%clk 0:02:50.2]} 5. d4 {[%clk 0:02:59.2]}
5... Bg4 {[%clk 0:02:48.8]} 6. Be2 {[%clk 0:02:59.2]} 6... cxd4 {[%clk 0:02:46]}
7. cxd4 {[%clk 0:02:55]} 7... e6 {[%clk 0:02:46]} 8. Nc3 {[%clk 0:02:55.1]} 8...
Bb4 {[%clk 0:02:45.2]} 9. O-O {[%clk 0:02:54.9]} 9... Bxc3 {[%clk 0:02:38.3]}
10. bxc3 {[%clk 0:02:53.8]} 10... Nf6 {[%clk 0:02:37.5]} 11. Ba3 {[%clk
0:02:53]} 11... Qa5 {[%clk 0:02:25.7]} 12. Qb3 {[%clk 0:02:51.3]} 12... Qb6
{[%clk 0:02:17.6]} 13. Qa4 {[%clk 0:02:41.8]} 13... Nd5 {[%clk 0:02:07]} 14.
Rfc1 {[%clk 0:02:31]} 14... Qa5 {[%clk 0:02:02.2]} 15. Qxa5 {[%clk 0:02:26.6]}
15... Nxa5 {[%clk 0:02:03.1]} 16. Bb5+ {[%clk 0:02:26.5]} 16... Kd8 {[%clk
0:01:55.9]} 17. Ne5 {[%clk 0:02:25.2]} 17... Bh5 {[%clk 0:01:55.8]} 18. g3
{[%clk 0:01:54.1]} 18... f6 {[%clk 0:01:53.1]} 19. Nd3 {[%clk 0:01:51.3]} 19...
a6 {[%clk 0:01:51.3]} 20. Ba4 {[%clk 0:01:50.3]} 20... Nc4 {[%clk 0:01:50.2]}
21. Bb4 {[%clk 0:01:47.7]} 21... Nxb4 {[%clk 0:01:33.2]} 22. cxb4 {[%clk
0:01:43.6]} 22... Nd6 {[%clk 0:01:20.9]} 23. Nc5 {[%clk 0:01:34.2]} 23... Bf7
{[%clk 0:01:20.9]} 24. Re1 {[%clk 0:01:32.8]} 24... b5 {[%clk 0:00:58]} 25. Bb3
{[%clk 0:01:31.6]} 25... Re8 {[%clk 0:00:56.3]} 26. Bxe6 {[%clk 0:01:22.6]}
26... Bg6 {[%clk 0:00:53.5]} 27. Bd5 {[%clk 0:01:21.8]} 27... Ra7 {[%clk
0:00:50.9]} 28. Ne6+ {[%clk 0:01:20]} 28... Kc8 {[%clk 0:00:47.9]} 29. Rac1+
{[%clk 0:01:17.9]} 29... Kb8 {[%clk 0:00:47.8]} 30. Rc6 {[%clk 0:01:11.2]} 30...
Nc4 {[%clk 0:00:46.8]} 31. Bxc4 {[%clk 0:01:06.3]} 31... bxc4 {[%clk 0:00:46.8]}
32. d5 {[%clk 0:01:05.9]} 32... Bd3 {[%clk 0:00:41.6]} 33. Re3 {[%clk 0:01:03]}
33... Rd7 {[%clk 0:00:40.2]} 34. Nc5 {[%clk 0:01:01.4]} 34... Rdd8 {[%clk
0:00:37.9]} 35. d6 {[%clk 0:00:55]} 35... Rxe3 {[%clk 0:00:32.5]} 36. fxe3
{[%clk 0:00:54.4]} 36... a5 {[%clk 0:00:33.1]} 37. bxa5 {[%clk 0:00:50.7]} 37...
Bg6 {[%clk 0:00:25.4]} 38. a6 {[%clk 0:00:47.4]} 38... c3 {[%clk 0:00:25.1]} 39.
d7 {[%clk 0:00:34.3]} 39... c2 {[%clk 0:00:23.5]} 40. Nb3 {[%clk 0:00:11]} 40...
Rxd7 {[%clk 0:00:23.2]} 41. Nd4 {[%clk 0:00:10.9]} 41... Ka7 {[%clk 0:00:19.3]}
42. Nxc2 {[%clk 0:00:09.9]} 42... Rd1+ {[%clk 0:00:19]} 43. Kf2 {[%clk
0:00:08.9]} 43... Rd2+ {[%clk 0:00:19.6]} 44. Kf3 {[%clk 0:00:09.3]} 44... Rxc2
{[%clk 0:00:20.3]} 45. Re6 {[%clk 0:00:05.9]} 45... Rxh2 {[%clk 0:00:20]} 46.
Re7+ {[%clk 0:00:06.1]} 46... Kxa6 {[%clk 0:00:20.3]} 47. Rxg7 {[%clk 0:00:07]}
47... Rxa2 {[%clk 0:00:20.1]} 48. Re7 {[%clk 0:00:06.8]} 48... Rb2 {[%clk
0:00:20.4]} 49. Kf4 {[%clk 0:00:06.3]} 49... Rb4+ {[%clk 0:00:20.6]} 50. e4
{[%clk 0:00:06.8]} 50... Rb6 {[%clk 0:00:19.5]} 51. g4 {[%clk 0:00:06.4]} 51...
Kb5 {[%clk 0:00:20]} 52. Rd7 {[%clk 0:00:04.5]} 52... Kc5 {[%clk 0:00:20.2]} 53.
Rc7+ {[%clk 0:00:03.7]} 53... Rc6 {[%clk 0:00:20.4]} 54. Rd7 {[%clk 0:00:03.7]}
54... Rd6 {[%clk 0:00:20]} 55. Rc7+ {[%clk 0:00:03.8]} 55... Kb6 {[%clk
0:00:20.2]} 56. Rc1 {[%clk 0:00:03.5]} 56... Re6 {[%clk 0:00:20.3]} 57. Rb1+
{[%clk 0:00:03.7]} 57... Kc5 {[%clk 0:00:20.1]} 58. Rc1+ {[%clk 0:00:04.3]}
58... Kd6 {[%clk 0:00:20.7]} 59. Rd1+ {[%clk 0:00:04.8]} 59... Ke7 {[%clk
0:00:21.2]} 60. Re1 {[%clk 0:00:05.4]} 60... Kf7 {[%clk 0:00:21.6]} 61. Re2
{[%clk 0:00:05.3]} 61... Re5 {[%clk 0:00:22.1]} 62. Kf3 {[%clk 0:00:05.3]} 62...
Kg7 {[%clk 0:00:22.5]} 63. Kf4 {[%clk 0:00:05.6]} 63... Be8 {[%clk 0:00:23]} 64.
Re3 {[%clk 0:00:05.5]} 64... Bc6 {[%clk 0:00:23.5]} 65. Re2 {[%clk 0:00:06.1]}
65... Kg6 {[%clk 0:00:23.8]} 66. Re3 {[%clk 0:00:06.6]} 66... h6 {[%clk
0:00:24.2]} 67. Re2 {[%clk 0:00:07.2]} 67... Bd7 {[%clk 0:00:21.7]} 68. Re3
{[%clk 0:00:07.2]} 68... Be6 {[%clk 0:00:21.8]} 69. Re2 {[%clk 0:00:07.1]} 69...
Rg5 {[%clk 0:00:22.2]} 70. Rg2 {[%clk 0:00:07.1]} 70... Kg7 {[%clk 0:00:22.5]}
71. Rg3 {[%clk 0:00:07.2]} 71... h5 {[%clk 0:00:21.4]} 72. gxh5 {[%clk
0:00:07.2]} 72... Rxg3 {[%clk 0:00:20.6]} 73. Kxg3 {[%clk 0:00:08.1]} 73... Kh6
{[%clk 0:00:21]} 74. Kf4 {[%clk 0:00:03.1]} 74... Kxh5 {[%clk 0:00:20.9]} 75. e5
{[%clk 0:00:03.7]} 75... f5 {[%clk 0:00:21.2]} 76. Ke3 {[%clk 0:00:03]} 76...
Kg4 {[%clk 0:00:21.2]} 77. Kd4 {[%clk 0:00:02.8]} 77... f4 {[%clk 0:00:21.5]}
78. Kc5 {[%clk 0:00:02.1]} 78... f3 {[%clk 0:00:21.9]} 79. Kd6 {[%clk
0:00:02.6]} 79... Kf5 {[%clk 0:00:22.2]} 0-1

[Event "Early-Titled-Tuesday-Blitz-December-26-2023"]
[Site "Chess.com"]
[Date "2023.12.26"]
[Round "3"]
[White "Vladimir_Zakhartsov"]
[Black "SahibSinghKnight"]
[Result "1-0"]
[WhiteElo "2877"]
[BlackElo "2680"]
[TimeControl "180+1"]
[EndTime "8:29:27 PST"]
[Termination "Vladimir_Zakhartsov won by checkmate"]

1. e4 {[%clk 0:03:00.9]} 1... e6 {[%clk 0:02:58.3]} 2. d4 {[%clk 0:03:00]} 2...
d5 {[%clk 0:02:58.5]} 3. Nd2 {[%clk 0:02:59.7]} 3... c5 {[%clk 0:02:58]} 4. exd5
{[%clk 0:02:59.8]} 4... Qxd5 {[%clk 0:02:58]} 5. dxc5 {[%clk 0:03:00.3]} 5...
Nf6 {[%clk 0:02:56.7]} 6. Nb3 {[%clk 0:02:59.1]} 6... Qxd1+ {[%clk 0:02:56.3]}
7. Kxd1 {[%clk 0:03:00]} 7... Nbd7 {[%clk 0:02:56.6]} 8. Bb5 {[%clk 0:02:57.7]}
8... a6 {[%clk 0:02:56.6]} 9. Ba4 {[%clk 0:02:57.9]} 9... Be7 {[%clk 0:02:54.3]}
10. Be3 {[%clk 0:02:53.1]} 10... Nd5 {[%clk 0:02:47]} 11. Bd4 {[%clk 0:02:46.5]}
11... O-O {[%clk 0:02:41]} 12. Nf3 {[%clk 0:02:46.3]} 12... Rd8 {[%clk
0:02:40.4]} 13. Ke2 {[%clk 0:02:32]} 13... Nf4+ {[%clk 0:02:40.3]} 14. Kf1
{[%clk 0:02:29.9]} 14... f6 {[%clk 0:02:39.8]} 15. c4 {[%clk 0:02:15.3]} 15...
e5 {[%clk 0:02:38]} 16. Be3 {[%clk 0:02:14.1]} 16... Rb8 {[%clk 0:01:50.9]} 17.
Rd1 {[%clk 0:02:08.9]} 17... Ne6 {[%clk 0:01:13.4]} 18. c6 {[%clk 0:02:01.3]}
18... b5 {[%clk 0:01:05.9]} 19. cxb5 {[%clk 0:01:07.4]} 19... axb5 {[%clk
0:01:04.3]} 20. Bxb5 {[%clk 0:01:07.5]} 20... Rxb5 {[%clk 0:01:02]} 21. cxd7
{[%clk 0:01:07.6]} 21... Ba6 {[%clk 0:00:57.5]} 22. Kg1 {[%clk 0:01:06.7]} 22...
Rb7 {[%clk 0:00:55.5]} 23. h3 {[%clk 0:01:06.5]} 23... Rbxd7 {[%clk 0:00:55.4]}
24. Rxd7 {[%clk 0:01:03]} 24... Rxd7 {[%clk 0:00:55.7]} 25. Kh2 {[%clk
0:01:03.9]} 25... Bc4 {[%clk 0:00:46.2]} 26. Nfd2 {[%clk 0:01:02.9]} 26... Bd5
{[%clk 0:00:44.7]} 27. Rc1 {[%clk 0:01:02.7]} 27... f5 {[%clk 0:00:43.8]} 28. f3
{[%clk 0:00:58.5]} 28... Bd6 {[%clk 0:00:42.3]} 29. Kg1 {[%clk 0:00:52.2]} 29...
Rb7 {[%clk 0:00:36.3]} 30. Nc4 {[%clk 0:00:48.7]} 30... Bc7 {[%clk 0:00:33.4]}
31. Nbd2 {[%clk 0:00:35.9]} 31... e4 {[%clk 0:00:18.9]} 32. fxe4 {[%clk
0:00:34.9]} 32... fxe4 {[%clk 0:00:18.6]} 33. b3 {[%clk 0:00:33.6]} 33... Nf4
{[%clk 0:00:18.3]} 34. Rf1 {[%clk 0:00:06.8]} 34... g5 {[%clk 0:00:16]} 35. a4
{[%clk 0:00:04.9]} 35... Bxc4 {[%clk 0:00:15]} 36. bxc4 {[%clk 0:00:02.7]} 36...
Rb4 {[%clk 0:00:15.2]} 37. Nxe4 {[%clk 0:00:02.9]} 37... Rxc4 {[%clk 0:00:15]}
38. Nxg5 {[%clk 0:00:03.1]} 38... Ne2+ {[%clk 0:00:14.5]} 39. Kf2 {[%clk
0:00:03.4]} 39... Ng3 {[%clk 0:00:13.1]} 40. Ra1 {[%clk 0:00:03.7]} 40... Rc2+
{[%clk 0:00:13.3]} 41. Kf3 {[%clk 0:00:04]} 41... Nf5 {[%clk 0:00:13.1]} 42. Ne6
{[%clk 0:00:04]} 42... Be5 {[%clk 0:00:11.5]} 43. Ra3 {[%clk 0:00:03.3]} 43...
Bd6 {[%clk 0:00:11.5]} 44. Ke4 {[%clk 0:00:03.5]} 44... Bxa3 {[%clk 0:00:09.3]}
45. Kxf5 {[%clk 0:00:03.3]} 45... Rc4 {[%clk 0:00:09.8]} 46. a5 {[%clk
0:00:03.1]} 46... Ra4 {[%clk 0:00:10.3]} 47. Bb6 {[%clk 0:00:03]} 47... Bb4
{[%clk 0:00:10.8]} 48. g4 {[%clk 0:00:03.1]} 48... Bxa5 {[%clk 0:00:11]} 49.
Bxa5 {[%clk 0:00:03.7]} 49... Rxa5+ {[%clk 0:00:11.9]} 50. Kf4 {[%clk
0:00:04.3]} 50... Kf7 {[%clk 0:00:11.2]} 51. Ng5+ {[%clk 0:00:04.3]} 51... Kg6
{[%clk 0:00:11.8]} 52. Nf3 {[%clk 0:00:05]} 52... Ra4+ {[%clk 0:00:11.7]} 53.
Kg3 {[%clk 0:00:05.1]} 53... Ra3 {[%clk 0:00:12.3]} 54. Kf4 {[%clk 0:00:05.6]}
54... Kf6 {[%clk 0:00:12.5]} 55. h4 {[%clk 0:00:05.1]} 55... Ra4+ {[%clk
0:00:12.9]} 56. Kg3 {[%clk 0:00:05.7]} 56... Kf7 {[%clk 0:00:11.8]} 57. Ne5+
{[%clk 0:00:04.9]} 57... Ke6 {[%clk 0:00:11.9]} 58. Nf3 {[%clk 0:00:05.8]} 58...
Kd5 {[%clk 0:00:11.9]} 59. Ng5 {[%clk 0:00:05.8]} 59... h6 {[%clk 0:00:11.3]}
60. Nf7 {[%clk 0:00:05.9]} 60... Ra3+ {[%clk 0:00:09.3]} 61. Kf4 {[%clk
0:00:05.8]} 61... Ra6 {[%clk 0:00:09.3]} 62. Kf5 {[%clk 0:00:05.7]} 62... Re6
{[%clk 0:00:07.1]} 63. h5 {[%clk 0:00:05.3]} 63... Rc6 {[%clk 0:00:06.6]} 64.
Ne5 {[%clk 0:00:04.3]} 64... Re6 {[%clk 0:00:06.1]} 65. Nf7 {[%clk 0:00:04.5]}
65... Rc6 {[%clk 0:00:06]} 66. Ne5 {[%clk 0:00:04.8]} 66... Re6 {[%clk
0:00:06.1]} 67. Ng6 {[%clk 0:00:05.6]} 67... Rc6 {[%clk 0:00:06.4]} 68. Ne7+
{[%clk 0:00:05.2]} 68... Kd6 {[%clk 0:00:07]} 69. Nxc6 {[%clk 0:00:05.8]} 69...
Kxc6 {[%clk 0:00:07.9]} 70. Kg6 {[%clk 0:00:06.5]} 70... Kd6 {[%clk 0:00:08.8]}
71. Kxh6 {[%clk 0:00:07.4]} 71... Ke6 {[%clk 0:00:09.7]} 72. Kg7 {[%clk
0:00:08.3]} 72... Ke5 {[%clk 0:00:09.9]} 73. h6 {[%clk 0:00:09.2]} 73... Kf4
{[%clk 0:00:10.8]} 74. h7 {[%clk 0:00:10.1]} 74... Kxg4 {[%clk 0:00:11.7]} 75.
h8=Q {[%clk 0:00:11]} 75... Kf5 {[%clk 0:00:12.6]} 76. Qh6 {[%clk 0:00:11.4]}
76... Ke4 {[%clk 0:00:13.5]} 77. Qf6 {[%clk 0:00:12]} 77... Ke3 {[%clk
0:00:14.4]} 78. Qf5 {[%clk 0:00:12.4]} 78... Ke2 {[%clk 0:00:15.3]} 79. Qf4
{[%clk 0:00:12.9]} 79... Kd1 {[%clk 0:00:16.2]} 80. Qf2 {[%clk 0:00:12.6]} 80...
Kc1 {[%clk 0:00:16.4]} 81. Kf6 {[%clk 0:00:13.5]} 81... Kb1 {[%clk 0:00:17.3]}
82. Ke5 {[%clk 0:00:14.4]} 82... Ka1 {[%clk 0:00:18.2]} 83. Kd4 {[%clk
0:00:15.3]} 83... Kb1 {[%clk 0:00:19.1]} 84. Kc3 {[%clk 0:00:16.2]} 84... Kc1
{[%clk 0:00:20]} 85. Qc2# {[%clk 0:00:16.2]} 1-0